[Event "5th EKA IIFL Investment 2019"]
[Site "Mumbai"]
[Date "2019.12.30"]
[Round "1.1"]
[White "Gupta, Abhijeet"]
[Black "Saurabh Anand"]
[Result "1/2-1/2"]
[ECO "D31"]
[WhiteElo "2611"]
[BlackElo "2269"]
[Annotator "ChessBase"]
[PlyCount "188"]
[EventDate "2019.12.30"]
[EventType "swiss"]
[EventCountry "IND"]
[SourceTitle "playchess.com"]
[Source "ChessBase"]
[SourceQuality "1"]
[TimeControl "40/5400+30:1800+30"]

1. d4 {[%emt 0:00:00]} d5 {[%emt 0:00:06]} 2. c4 {[%emt 0:00:00]} e6 {[%emt 0:00:17]} 3. Nc3 {[%emt 0:00:00]} Be7 {[%emt 0:00:35]} 4. Nf3 {[%emt 0:00:09]} Nf6 {[%emt 0:00:08]} 5. g3 {[%emt 0:00:10]} O-O {[%emt 0:01:21]} 6. Bg2 {[%emt 0:00:03]} dxc4 {[%emt 0:05:06]} 7. Ne5 {[%emt 0:00:36]} Nc6 {[%emt 0:00:30]} 8. Bxc6 {[%emt 0:00:06]} bxc6 {[%emt 0:00:04]} 9. Nxc6 {[%emt 0:00:05]} Qe8 {[%emt 0:00:12]} 10. Nxe7+ {[%emt 0:00:05]} Qxe7 {[%emt 0:00:08]} 11. Qa4 {[%emt 0:00:05]} c5 {[%emt 0:10:25]} 12. dxc5 {[%emt 0:00:05]} Qxc5 {[%emt 0:00:38]} 13. Be3 {[%emt 0:00:05]} Qc7 {[%emt 0:00:24]} 14. O-O-O {[%emt 0:00:11]} Bd7 {[%emt 0:01:10]} 15. Qa3 {[%emt 0:00:54]} Bc6 {[%emt 0:01:49]} 16. f3 {[%emt 0:00:10]} Nd5 {[%emt 0:05:32]} 17. Bd4 {[%emt 0:01:19]} Rac8 {[%emt 0:12:06]} 18. Rd2 {[%emt 0:01:14]} Nxc3 {[%emt 0:01:56]} 19. Bxc3 {[%emt 0:00:16]} Qb8 {[%emt 0:06:09]} 20. Rhd1 {[%emt 0:01:21]} Bb5 {[%emt 0:08:04]} 21. Rd4 {[%emt 0:01:15]} e5 {[%emt 0:01:55]} 22. Rd6 {[%emt 0:02:21]} f6 {[%emt 0:00:35]} 23. g4 {[%emt 0:00:26]} a6 {[%emt 0:03:35]} 24. h4 {[%emt 0:00:16]} Rfd8 {[%emt 0:01:04]} 25. Qb4 {[%emt 0:04:24]} Rxd6 {[%emt 0:03:55]} 26. Rxd6 {[%emt 0:00:05]} Qa7 {[%emt 0:00:47]} 27. a4 {[%emt 0:03:06]} Be8 {[%emt 0:06:38]} 28. Rb6 {[%emt 0:05:08]} Bxa4 {[%emt 0:04:42]} 29. Qd6 {[%emt 0:04:07]} Qd7 {[%emt 0:06:27]} 30. Rxa6 {[%emt 0:00:55]} Qxd6 {[%emt 0:00:45]} 31. Rxd6 {[%emt 0:00:04]} Rc7 {[%emt 0:00:29]} 32. Ra6 {[%emt 0:00:05]} Bb3 {[%emt 0:02:58]} 33. Kd2 {[%emt 0:00:06]} Kf7 {[%emt 0:00:30]} 34. Ke3 {[%emt 0:00:03]} h6 {[%emt 0:00:48]} 35. g5 {[%emt 0:01:06]} hxg5 {[%emt 0:01:01]} 36. hxg5 {[%emt 0:00:04]} Re7 {[%emt 0:00:48]} 37. Bb4 {[%emt 0:00:10]} Re6 {[%emt 0:03:17]} 38. Ra7+ {[%emt 0:02:04]} Kg6 {[%emt 0:00:30]} 39. gxf6 gxf6 {[%emt 0:00:09]} 40. Ke4 {[%emt 0:00:00]} Rb6 {[%emt 0:00:00]} 41. Ba3 {[%emt 0:03:27]} Bd1 {[%emt 0:02:28]} 42. Ke3 {[%emt 0:00:12]} Bb3 {[%emt 0:00:45]} 43. Rd7 {[%emt 0:00:11]} Kf5 {[%emt 0:03:11]} 44. Kf2 {[%emt 0:00:23]} e4 {[%emt 0:08:07]} 45. Bc5 {[%emt 0:00:05]} Rc6 {[%emt 0:00:36]} 46. Bd4 {[%emt 0:00:28]} exf3 {[%emt 0:03:44]} 47. exf3 {[%emt 0:00:04]} Ke6 {[%emt 0:01:15]} 48. Ra7 {[%emt 0:00:06]} Rd6 {[%emt 0:00:43]} 49. Bc3 {[%emt 0:00:36]} Rd3 {[%emt 0:00:35]} 50. Rc7 {[%emt 0:00:25]} Rd7 {[%emt 0:01:38]} 51. Rc8 {[%emt 0:00:03]} Rd6 {[%emt 0:00:47]} 52. Kg3 {[%emt 0:00:28]} Kf5 {[%emt 0:00:34]} 53. Rc5+ {[%emt 0:00:18]} Kg6 {[%emt 0:00:31]} 54. Kg4 {[%emt 0:00:21]} Re6 {[%emt 0:02:14]} 55. Kf4 {[%emt 0:00:35]} Rd6 {[%emt 0:00:35]} 56. Kg4 {[%emt 0:00:35]} Re6 {[%emt 0:00:08]} 57. Rd5 {[%emt 0:00:37]} Bc2 {[%emt 0:00:57]} 58. Kf4 {[%emt 0:00:54]} Bb1 {[%emt 0:01:11]} 59. Rd4 {[%emt 0:01:37]} Ba2 {[%emt 0:00:08]} 60. Kg4 {[%emt 0:00:16]} Bb3 {[%emt 0:00:33]} 61. Rd2 {[%emt 0:00:47]} Ba2 {[%emt 0:01:21]} 62. Rd5 {[%emt 0:01:33]} Bb1 {[%emt 0:00:31]} 63. Rd4 {[%emt 0:00:25]} Ba2 {[%emt 0:00:23]} 64. f4 {[%emt 0:00:47]} f5+ {[%emt 0:00:35]} 65. Kh4 {[%emt 0:00:07]} Rc6 {[%emt 0:00:51]} 66. Rd7 {[%emt 0:01:18]} Bb1 {[%emt 0:00:38]} 67. Kg3 {[%emt 0:00:11]} Re6 {[%emt 0:01:34]} 68. Be5 {[%emt 0:00:05]} Rb6 {[%emt 0:00:24]} 69. Kf2 {[%emt 0:00:11]} Be4 {[%emt 0:03:00]} 70. Ke3 {[%emt 0:00:27]} Rb7 {[%emt 0:01:20]} 71. Rd8 {[%emt 0:01:24]} Kf7 {[%emt 0:01:00]} 72. Rc8 {[%emt 0:00:34]} Bd3 {[%emt 0:00:17]} 73. Rc6 {[%emt 0:00:11]} Ke7 {[%emt 0:00:41]} 74. Bc3 {[%emt 0:02:06]} Rd7 {[%emt 0:00:17]} 75. Bf6+ {[%emt 0:00:42]} Kf7 {[%emt 0:00:23]} 76. Bd4 {[%emt 0:00:05]} Rd5 {[%emt 0:00:49]} 77. b3 {[%emt 0:01:43]} Rb5 {[%emt 0:04:06]} 78. bxc4 {[%emt 0:00:25]} Rb3 {[%emt 0:00:06]} 79. Kd2 {[%emt 0:01:06]} Be4 {[%emt 0:00:05]} 80. Rc7+ {[%emt 0:00:09]} Ke6 {[%emt 0:00:50]} 81. Bc3 {[%emt 0:00:37]} Rb7 {[%emt 0:00:24]} 82. Rc8 {[%emt 0:00:49]} Kd7 {[%emt 0:00:19]} 83. Rh8 {[%emt 0:01:22]} Rc7 {[%emt 0:00:19]} 84. Rh7+ {[%emt 0:00:07]} Kc8 {[%emt 0:00:09]} 85. Rh6 {[%emt 0:00:03]} Rxc4 {[%emt 0:00:14]} 86. Be5 {[%emt 0:00:02]} Kd7 {[%emt 0:00:20]} 87. Ke3 {[%emt 0:00:12]} Ra4 {[%emt 0:00:16]} 88. Bc3 {[%emt 0:00:10]} Rc4 {[%emt 0:00:17]} 89. Be5 {[%emt 0:00:11]} Ra4 {[%emt 0:00:05]} 90. Rd6+ {[%emt 0:00:04]} Ke7 {[%emt 0:00:09]} 91. Rb6 {[%emt 0:00:03]} Rc4 {[%emt 0:00:15]} 92. Ra6 {[%emt 0:00:03]} Kd7 {[%emt 0:00:17]} 93. Kf2 {[%emt 0:00:05]} Rc2+ {[%emt 0:00:09]} 94. Ke3 {[%emt 0:00:12]} Rc4 {[%emt 0:00:05]} 1/2-1/2

[Event "5th EKA IIFL Investment 2019"]
[Site "Mumbai"]
[Date "2019.12.30"]
[Round "1.2"]
[White "Pranav Vijay"]
[Black "Vaibhav, Suri"]
[Result "1/2-1/2"]
[ECO "B92"]
[WhiteElo "2265"]
[BlackElo "2597"]
[Annotator "ChessBase"]
[PlyCount "112"]
[EventDate "2019.12.30"]
[EventType "swiss"]
[EventCountry "IND"]
[SourceTitle "playchess.com"]
[Source "ChessBase"]
[SourceQuality "1"]
[TimeControl "40/5400+30:1800+30"]

1. e4 {[%emt 0:00:02]} c5 {[%emt 0:00:02]} 2. Nf3 {[%emt 0:00:14]} d6 {[%emt 0:00:06]} 3. d4 {[%emt 0:00:25]} cxd4 {[%emt 0:00:07]} 4. Nxd4 {[%emt 0:00:10]} Nf6 {[%emt 0:00:06]} 5. Nc3 {[%emt 0:00:09]} a6 {[%emt 0:00:45]} 6. Be2 {[%emt 0:00:13]} e5 {[%emt 0:00:10]} 7. Nb3 {[%emt 0:00:08]} Be7 {[%emt 0:00:16]} 8. O-O {[%emt 0:00:12]} O-O {[%emt 0:00:11]} 9. Kh1 {[%emt 0:00:05]} Nc6 {[%emt 0:02:15]} 10. f4 {[%emt 0:04:33]} Re8 {[%emt 0:01:00]} 11. f5 {[%emt 0:02:53]} h6 {[%emt 0:17:09]} 12. Be3 {[%emt 0:02:57]} b5 {[%emt 0:03:19]} 13. a4 {[%emt 0:02:48]} b4 {[%emt 0:09:21]} 14. Nd5 {[%emt 0:00:11]} Rb8 {[%emt 0:00:49]} 15. Qd3 {[%emt 0:07:30]} Bb7 {[%emt 0:08:10]} 16. Bb6 {[%emt 0:03:50]} Qc8 {[%emt 0:02:19]} 17. Nxf6+ {[%emt 0:01:39]} Bxf6 {[%emt 0:04:34]} 18. Qxd6 {[%emt 0:07:11]} Nd4 {[%emt 0:03:19]} 19. Bd3 {[%emt 0:01:27]} Be7 {[%emt 0:01:46]} 20. Qc7 {[%emt 0:05:39]} Qxc7 {[%emt 0:14:52]} 21. Bxc7 {[%emt 0:00:09]} Rbc8 {[%emt 0:00:07]} 22. Nxd4 {[%emt 0:03:16]} Rxc7 {[%emt 0:02:32]} 23. Nb3 {[%emt 0:01:11]} Rd8 {[%emt 0:02:07]} 24. Na5 {[%emt 0:05:21]} Ba8 {[%emt 0:01:59]} 25. b3 {[%emt 0:01:03]} Rd4 {[%emt 0:04:00]} 26. Rae1 {[%emt 0:00:37]} Bg5 {[%emt 0:02:46]} 27. Nc4 {[%emt 0:01:05]} Rc5 {[%emt 0:00:14]} 28. g3 {[%emt 0:02:43]} h5 {[%emt 0:06:00]} 29. Kg2 {[%emt 0:02:29]} Bb7 {[%emt 0:00:58]} 30. h4 {[%emt 0:02:10]} Bh6 {[%emt 0:00:43]} 31. Kf3 {[%emt 0:01:57]} a5 {[%emt 0:01:45]} 32. Re2 {[%emt 0:03:43]} Kf8 {[%emt 0:01:28]} 33. Kg2 {[%emt 0:03:41]} Ke7 {[%emt 0:01:56]} 34. Kf3 {[%emt 0:05:50]} Kf6 {[%emt 0:02:03]} 35. Rfe1 {[%emt 0:06:00]} Rd8 {[%emt 0:03:04]} 36. Kg2 {[%emt 0:01:27]} Rd4 {[%emt 0:00:22]} 37. Nb2 {[%emt 0:02:49]} Rc7 {[%emt 0:02:22]} 38. Nd1 {[%emt 0:00:41]} Ke7 {[%emt 0:01:49]} 39. Nf2 {[%emt 0:02:28]} Rc3 {[%emt 0:00:09]} 40. Rh1 {[%emt 0:00:00]} Bc6 {[%emt 0:00:00]} 41. g4 {[%emt 0:07:51]} hxg4 {[%emt 0:03:38]} 42. Nxg4 {[%emt 0:00:30]} Bf4 {[%emt 0:00:34]} 43. h5 {[%emt 0:02:24]} Bxe4+ {[%emt 0:06:29]} 44. Rxe4 {[%emt 0:03:02]} Rxe4 {[%emt 0:00:06]} 45. Bxe4 {[%emt 0:00:12]} Rg3+ {[%emt 0:00:04]} 46. Kf2 {[%emt 0:00:04]} Rxg4 {[%emt 0:00:04]} 47. Bf3 {[%emt 0:00:04]} Rg5 {[%emt 0:03:23]} 48. h6 {[%emt 0:01:34]} gxh6 {[%emt 0:01:42]} 49. Rxh6 {[%emt 0:00:06]} Rxf5 {[%emt 0:05:42]} 50. Ra6 {[%emt 0:00:19]} Bd2 {[%emt 0:07:24]} 51. Rxa5 {[%emt 0:00:29]} Bc3 {[%emt 0:00:01]} 52. Ra7+ {[%emt 0:06:34]} Kd6 {[%emt 0:00:05]} 53. Ra6+ {[%emt 0:00:40]} Kc7 {[%emt 0:02:49]} 54. Rc6+ {[%emt 0:00:45]} Kb8 {[%emt 0:03:38]} 55. Rc4 {[%emt 0:02:24]} Rg5 {[%emt 0:00:19]} 56. Rg4 {[%emt 0:00:41]} Bd4+ {[%emt 0:02:08]} 1/2-1/2

[Event "5th EKA IIFL Investment 2019"]
[Site "Mumbai"]
[Date "2019.12.30"]
[Round "1.3"]
[White "Aleksandrov, Aleksej"]
[Black "Rakshitta Ravi"]
[Result "1-0"]
[ECO "A50"]
[WhiteElo "2592"]
[BlackElo "2260"]
[Annotator "ChessBase"]
[PlyCount "58"]
[EventDate "2019.12.30"]
[EventType "swiss"]
[EventCountry "IND"]
[SourceTitle "playchess.com"]
[Source "ChessBase"]
[SourceQuality "1"]
[TimeControl "40/5400+30:1800+30"]

1. d4 {[%emt 0:00:58]} Nf6 {[%emt 0:00:34]} 2. c4 {[%emt 0:00:04]} Nc6 {[%emt 0:00:12]} 3. Nf3 {[%emt 0:01:41]} e6 {[%emt 0:00:09]} 4. Nc3 {[%emt 0:01:15]} Bb4 {[%emt 0:00:20]} 5. Qc2 {[%emt 0:00:58]} Qe7 {[%emt 0:00:42]} 6. Bd2 {[%emt 0:06:02]} d6 {[%emt 0:00:37]} 7. e4 {[%emt 0:00:54]} Bxc3 {[%emt 0:06:57]} 8. Bxc3 {[%emt 0:00:08]} e5 {[%emt 0:00:13]} 9. d5 {[%emt 0:00:11]} Nb8 {[%emt 0:00:50]} 10. g3 {[%emt 0:01:33]} a5 {[%emt 0:00:51]} 11. Nd2 {[%emt 0:03:11]} O-O {[%emt 0:01:16]} 12. Bg2 {[%emt 0:00:04]} b6 {[%emt 0:10:29]} 13. O-O {[%emt 0:00:21]} Na6 {[%emt 0:02:11]} 14. a3 {[%emt 0:00:55]} Ng4 {[%emt 0:03:28]} 15. h3 Nh6 {[%emt 0:00:10]} 16. f4 {[%emt 0:02:50]} f5 {[%emt 0:24:13]} 17. Rae1 {[%emt 0:08:57]} Nc5 {[%emt 0:11:54]} 18. b4 {[%emt 0:03:46]} axb4 {[%emt 0:01:41]} 19. axb4 {[%emt 0:00:04]} Nxe4 {[%emt 0:08:21]} 20. Nxe4 {[%emt 0:01:14]} fxe4 {[%emt 0:00:02]} 21. fxe5 {[%emt 0:00:09]} Rxf1+ {[%emt 0:13:35]} 22. Rxf1 {[%emt 0:01:59]} Nf5 {[%emt 0:00:30]} 23. e6 {[%emt 0:00:54]} Qg5 {[%emt 0:03:24]} 24. Qf2 {[%emt 0:02:47]} Qe3 {[%emt 0:02:58]} 25. Qxe3 {[%emt 0:04:22]} Nxe3 {[%emt 0:00:07]} 26. Rf7 {[%emt 0:00:04]} Nd1 {[%emt 0:06:18]} 27. Rxg7+ {[%emt 0:00:21]} Kf8 {[%emt 0:00:16]} 28. Bf6 {[%emt 0:00:09]} Bb7 {[%emt 0:00:08]} 29. Rxh7 {[%emt 0:00:13]} Bc8 1-0

[Event "5th EKA IIFL Investment 2019"]
[Site "Mumbai"]
[Date "2019.12.30"]
[Round "1.4"]
[White "Jeet, Jain"]
[Black "Yakubboev, Nodirbek"]
[Result "0-1"]
[ECO "C47"]
[WhiteElo "2258"]
[BlackElo "2592"]
[Annotator "ChessBase"]
[PlyCount "117"]
[EventDate "2019.12.30"]
[EventType "swiss"]
[EventCountry "IND"]
[SourceTitle "playchess.com"]
[Source "ChessBase"]
[SourceQuality "1"]
[TimeControl "40/5400+30:1800+30"]

1. e4 {[%emt 0:00:00]} Nf6 {[%emt 0:04:36]} 2. Nc3 {[%emt 0:01:27]} e5 {[%emt 0:04:06]} 3. Nf3 {[%emt 0:07:06]} Nc6 {[%emt 0:01:04]} 4. d4 {[%emt 0:01:40]} exd4 {[%emt 0:02:42]} 5. Nxd4 {[%emt 0:00:10]} Bb4 {[%emt 0:00:06]} 6. Nxc6 {[%emt 0:00:22]} bxc6 {[%emt 0:00:02]} 7. Bd3 {[%emt 0:00:09]} d6 {[%emt 0:01:50]} 8. Bg5 {[%emt 0:02:03]} h6 {[%emt 0:15:57]} 9. Bh4 {[%emt 0:00:54]} Be6 {[%emt 0:07:57]} 10. O-O {[%emt 0:06:00]} g5 {[%emt 0:11:52]} 11. Bg3 {[%emt 0:00:10]} h5 {[%emt 0:00:38]} 12. f3 {[%emt 0:27:53]} h4 {[%emt 0:02:23]} 13. Bf2 {[%emt 0:01:06]} Bxc3 {[%emt 0:03:01]} 14. bxc3 {[%emt 0:02:27]} Nd7 {[%emt 0:04:12]} 15. Ba6 {[%emt 0:14:05]} c5 {[%emt 0:08:28]} 16. Bb5 {[%emt 0:00:24]} Kf8 {[%emt 0:05:57]} 17. Bxd7 {[%emt 0:00:59]} Qxd7 {[%emt 0:00:03]} 18. h3 {[%emt 0:10:44]} Rb8 {[%emt 0:03:59]} 19. Qd2 {[%emt 0:00:54]} Rg8 {[%emt 0:02:47]} 20. Kh2 {[%emt 0:02:39]} Qc6 {[%emt 0:04:15]} 21. Rfb1 {[%emt 0:06:03]} Rxb1 {[%emt 0:03:16]} 22. Rxb1 {[%emt 0:00:01]} Ke7 {[%emt 0:00:06]} 23. Qc1 {[%emt 0:01:26]} Qa4 {[%emt 0:04:46]} 24. a3 {[%emt 0:05:34]} f6 {[%emt 0:02:13]} 25. Rb7 {[%emt 0:00:54]} Kd7 {[%emt 0:00:02]} 26. Rb1 {[%emt 0:01:25]} Ba2 {[%emt 0:02:51]} 27. Ra1 {[%emt 0:00:34]} Bc4 {[%emt 0:00:21]} 28. Rb1 {[%emt 0:00:09]} Ra8 {[%emt 0:01:16]} 29. Qb2 {[%emt 0:00:21]} Qc6 {[%emt 0:02:14]} 30. Qb7 {[%emt 0:02:22]} Qxb7 {[%emt 0:00:29]} 31. Rxb7 {[%emt 0:00:02]} Kc6 {[%emt 0:00:55]} 32. Rb1 {[%emt 0:00:02]} Re8 {[%emt 0:00:55]} 33. Re1 {[%emt 0:03:11]} Rb8 {[%emt 0:00:07]} 34. f4 {[%emt 0:00:20]} Rb2 {[%emt 0:00:50]} 35. fxg5 {[%emt 0:01:00]} fxg5 {[%emt 0:00:01]} 36. Be3 {[%emt 0:02:16]} g4 {[%emt 0:00:43]} 37. hxg4 {[%emt 0:00:05]} Rxc2 {[%emt 0:00:03]} 38. Kh3 {[%emt 0:01:01]} Rxc3 {[%emt 0:01:11]} 39. Kxh4 {[%emt 0:00:01]} Rxa3 {[%emt 0:00:17]} 40. Bf4 {[%emt 0:00:00]} Ra2 {[%emt 0:00:00]} 41. g3 {[%emt 0:10:08]} a5 {[%emt 0:03:11]} 42. e5 {[%emt 0:01:35]} a4 {[%emt 0:04:19]} 43. g5 {[%emt 0:15:02]} Rh2+ {[%emt 0:03:48]} 44. Kg4 {[%emt 0:00:05]} Be6+ {[%emt 0:02:33]} 45. Kf3 {[%emt 0:00:01]} a3 {[%emt 0:01:04]} 46. exd6 {[%emt 0:06:03]} Bd5+ {[%emt 0:00:19]} 47. Ke3 {[%emt 0:00:22]} cxd6 {[%emt 0:00:18]} 48. g6 {[%emt 0:01:20]} Rh1 {[%emt 0:05:27]} 49. Rxh1 {[%emt 0:00:36]} Bxh1 {[%emt 0:00:07]} 50. Bg5 {[%emt 0:00:24]} a2 {[%emt 0:02:44]} 51. Bf6 {[%emt 0:00:04]} d5 {[%emt 0:00:06]} 52. Ba1 {[%emt 0:00:52]} d4+ {[%emt 0:00:31]} 53. Kd3 {[%emt 0:00:03]} Bd5 {[%emt 0:01:31]} 54. g4 {[%emt 0:00:13]} Be6 {[%emt 0:00:41]} 55. g7 {[%emt 0:00:08]} Kd5 {[%emt 0:00:22]} 56. Kc2 {[%emt 0:00:45]} Ke4 {[%emt 0:00:16]} 57. g5 {[%emt 0:00:44]} c4 {[%emt 0:00:57]} 58. Kd2 {[%emt 0:00:38]} c3+ {[%emt 0:00:18]} 59. Kc2 {[%emt 0:00:06]} 0-1

[Event "5th EKA IIFL Investment 2019"]
[Site "Mumbai"]
[Date "2019.12.30"]
[Round "1.5"]
[White "Puranik, Abhimanyu"]
[Black "Luong, Phuong Hanh"]
[Result "1-0"]
[ECO "A05"]
[WhiteElo "2580"]
[BlackElo "2256"]
[Annotator "ChessBase"]
[PlyCount "69"]
[EventDate "2019.12.30"]
[EventType "swiss"]
[EventCountry "IND"]
[SourceTitle "playchess.com"]
[Source "ChessBase"]
[SourceQuality "1"]
[TimeControl "40/5400+30:1800+30"]

1. Nf3 {[%emt 0:00:00]} Nf6 {[%emt 0:00:00]} 2. g3 {[%emt 0:00:03]} g6 {[%emt 0:00:00]} 3. b3 {[%emt 0:00:04]} Bg7 {[%emt 0:00:00]} 4. Bb2 {[%emt 0:00:04]} d6 {[%emt 0:00:20]} 5. d4 {[%emt 0:00:17]} O-O {[%emt 0:00:34]} 6. Bg2 {[%emt 0:00:11]} Nc6 {[%emt 0:00:36]} 7. O-O {[%emt 0:01:11]} e5 {[%emt 0:00:19]} 8. dxe5 {[%emt 0:04:46]} Nd7 {[%emt 0:02:22]} 9. c4 {[%emt 0:02:33]} Ndxe5 {[%emt 0:02:52]} 10. Nxe5 {[%emt 0:02:58]} dxe5 {[%emt 0:01:27]} 11. Nc3 {[%emt 0:02:36]} Be6 {[%emt 0:01:00]} 12. Nd5 {[%emt 0:12:20]} Qd7 {[%emt 0:02:12]} 13. Qd2 {[%emt 0:08:19]} Rfd8 {[%emt 0:02:26]} 14. Qg5 {[%emt 0:02:44]} Bxd5 {[%emt 0:02:36]} 15. cxd5 {[%emt 0:01:13]} Nd4 {[%emt 0:00:27]} 16. Qd2 {[%emt 0:04:46]} Qg4 {[%emt 0:02:36]} 17. f3 {[%emt 0:03:35]} Qf5 {[%emt 0:00:26]} 18. e3 {[%emt 0:06:10]} Qc2 {[%emt 0:02:10]} 19. Rf2 {[%emt 0:01:52]} Qxd2 {[%emt 0:00:13]} 20. Rxd2 {[%emt 0:00:04]} Nf5 {[%emt 0:00:59]} 21. e4 {[%emt 0:03:45]} Nd4 {[%emt 0:00:13]} 22. Rc1 {[%emt 0:02:37]} c6 {[%emt 0:01:01]} 23. f4 cxd5 {[%emt 0:01:39]} 24. fxe5 {[%emt 0:14:44]} Nc6 {[%emt 0:01:25]} 25. exd5 {[%emt 0:01:13]} Nxe5 {[%emt 0:00:12]} 26. Rc7 {[%emt 0:00:44]} Bh6 {[%emt 0:03:05]} 27. Re2 {[%emt 0:02:03]} Nd3 {[%emt 0:00:34]} 28. Bf6 {[%emt 0:03:19]} Re8 {[%emt 0:01:26]} 29. Rxe8+ {[%emt 0:04:46]} Rxe8 {[%emt 0:00:02]} 30. d6 {[%emt 0:04:26]} Be3+ {[%emt 0:00:54]} 31. Kf1 {[%emt 0:00:03]} Bc5 {[%emt 0:04:54]} 32. Re7 {[%emt 0:01:02]} Rd8 {[%emt 0:00:08]} 33. Re2 {[%emt 0:00:33]} Rf8 {[%emt 0:00:25]} 34. d7 {[%emt 0:00:22]} Bb6 {[%emt 0:00:10]} 35. Re8 {[%emt 0:01:01]} 1-0

[Event "5th EKA IIFL Investment 2019"]
[Site "Mumbai"]
[Date "2019.12.30"]
[Round "1.6"]
[White "Souhardo Basak"]
[Black "Bogdanovich, Stanislav"]
[Result "0-1"]
[ECO "B32"]
[WhiteElo "2254"]
[BlackElo "2562"]
[Annotator "ChessBase"]
[PlyCount "60"]
[EventDate "2019.12.30"]
[EventType "swiss"]
[EventCountry "IND"]
[SourceTitle "playchess.com"]
[Source "ChessBase"]
[SourceQuality "1"]
[TimeControl "40/5400+30:1800+30"]

1. e4 {[%emt 0:00:00]} c5 {[%emt 0:00:00]} 2. Nf3 {[%emt 0:00:00]} Nc6 {[%emt 0:00:00]} 3. d4 cxd4 {[%emt 0:00:00]} 4. Nxd4 {[%emt 0:00:00]} g6 {[%emt 0:00:00]} 5. Be3 {[%emt 0:01:50]} Nf6 {[%emt 0:00:00]} 6. Nc3 {[%emt 0:00:03]} Bg7 {[%emt 0:00:08]} 7. Be2 {[%emt 0:02:40]} O-O {[%emt 0:00:05]} 8. O-O {[%emt 0:00:04]} d5 9. Nxc6 {[%emt 0:13:08]} bxc6 {[%emt 0:00:14]} 10. e5 {[%emt 0:00:01]} Ne8 {[%emt 0:00:30]} 11. f4 {[%emt 0:00:50]} f6 {[%emt 0:00:00]} 12. Bd4 {[%emt 0:04:10]} fxe5 {[%emt 0:03:34]} 13. fxe5 {[%emt 0:00:03]} Rxf1+ {[%emt 0:02:20]} 14. Bxf1 {[%emt 0:00:39]} Nc7 {[%emt 0:11:04]} 15. Na4 {[%emt 0:06:24]} Ne6 {[%emt 0:00:02]} 16. Qd2 {[%emt 0:01:18]} Nxd4 {[%emt 0:15:42]} 17. Qxd4 {[%emt 0:00:02]} Rb8 {[%emt 0:01:57]} 18. b4 {[%emt 0:04:22]} Qd6 {[%emt 0:04:11]} 19. c3 {[%emt 0:30:22]} Bxe5 {[%emt 0:00:29]} 20. Qxa7 {[%emt 0:02:28]} Bxh2+ {[%emt 0:00:55]} 21. Kh1 {[%emt 0:01:09]} g5 {[%emt 0:02:01]} 22. Be2 {[%emt 0:13:36]} Qh6 {[%emt 0:02:08]} 23. Bf3 {[%emt 0:00:32]} g4 {[%emt 0:03:21]} 24. Bd1 {[%emt 0:02:13]} Bg3+ {[%emt 0:01:50]} 25. Kg1 {[%emt 0:00:07]} Qh2+ {[%emt 0:00:04]} 26. Kf1 {[%emt 0:00:09]} Ba6+ {[%emt 0:00:03]} 27. Qxa6 {[%emt 0:01:39]} Qh1+ {[%emt 0:00:03]} 28. Ke2 {[%emt 0:00:13]} Qe1+ {[%emt 0:00:01]} 29. Kd3 {[%emt 0:00:04]} Qe4+ {[%emt 0:00:04]} 30. Kd2 {[%emt 0:00:04]} Bf4# {[%emt 0:00:05]} 0-1

[Event "5th EKA IIFL Investment 2019"]
[Site "Mumbai"]
[Date "2019.12.30"]
[Round "1.7"]
[White "Fedorov, Alexei"]
[Black "Vatsal Singhania"]
[Result "1/2-1/2"]
[ECO "B24"]
[WhiteElo "2562"]
[BlackElo "2252"]
[Annotator "ChessBase"]
[PlyCount "98"]
[EventDate "2019.12.30"]
[EventType "swiss"]
[EventCountry "IND"]
[SourceTitle "playchess.com"]
[Source "ChessBase"]
[SourceQuality "1"]
[TimeControl "40/5400+30:1800+30"]

1. e4 {[%emt 0:00:00]} c5 {[%emt 0:00:00]} 2. Nc3 {[%emt 0:00:00]} Nc6 {[%emt 0:00:00]} 3. Bb5 {[%emt 0:00:01]} Nd4 {[%emt 0:00:00]} 4. Nf3 {[%emt 0:00:28]} Nxb5 {[%emt 0:03:22]} 5. Nxb5 {[%emt 0:00:07]} a6 {[%emt 0:00:30]} 6. Nc3 {[%emt 0:00:10]} d6 {[%emt 0:00:00]} 7. d4 {[%emt 0:00:38]} cxd4 {[%emt 0:00:24]} 8. Nxd4 {[%emt 0:00:48]} Nf6 {[%emt 0:00:40]} 9. Bg5 {[%emt 0:00:58]} e6 {[%emt 0:01:37]} 10. Qd3 {[%emt 0:00:23]} Be7 {[%emt 0:00:24]} 11. O-O-O {[%emt 0:00:20]} Bd7 {[%emt 0:04:08]} 12. Rhe1 {[%emt 0:04:17]} b5 13. a3 {[%emt 0:08:40]} h6 {[%emt 0:17:16]} 14. Bh4 {[%emt 0:02:10]} Rc8 {[%emt 0:16:26]} 15. f4 {[%emt 0:03:39]} O-O {[%emt 0:12:50]} 16. g4 {[%emt 0:28:05]} Nxg4 {[%emt 0:24:06]} 17. Bxe7 {[%emt 0:00:26]} Qxe7 {[%emt 0:00:04]} 18. Qg3 {[%emt 0:00:40]} Nf6 {[%emt 0:01:12]} 19. Rg1 {[%emt 0:00:14]} Ne8 {[%emt 0:00:59]} 20. Rdf1 {[%emt 0:10:13]} Rc4 {[%emt 0:05:18]} 21. Qe3 {[%emt 0:08:03]} Kh7 {[%emt 0:04:46]} 22. e5 {[%emt 0:05:06]} f5 {[%emt 0:02:26]} 23. exd6 {[%emt 0:04:46]} Nxd6 {[%emt 0:01:43]} 24. Nd5 {[%emt 0:02:17]} Qd8 {[%emt 0:01:28]} 25. Nxe6 {[%emt 0:01:59]} Bxe6 {[%emt 0:00:58]} 26. Qxe6 {[%emt 0:00:05]} Ne8 {[%emt 0:01:31]} 27. Ne3 {[%emt 0:05:53]} Rf6 {[%emt 0:00:37]} 28. Qd5 {[%emt 0:00:18]} Qxd5 {[%emt 0:00:13]} 29. Nxd5 {[%emt 0:00:04]} Rfc6 {[%emt 0:00:31]} 30. Rg2 {[%emt 0:02:58]} Re4 {[%emt 0:00:39]} 31. Nb4 {[%emt 0:05:19]} Rce6 {[%emt 0:00:23]} 32. Nd3 {[%emt 0:00:07]} Nf6 {[%emt 0:00:49]} 33. Nc5 {[%emt 0:01:39]} Re1+ {[%emt 0:00:04]} 34. Rxe1 {[%emt 0:00:15]} Rxe1+ {[%emt 0:00:07]} 35. Kd2 {[%emt 0:00:02]} Rf1 {[%emt 0:00:10]} 36. Ne6 {[%emt 0:03:10]} Nh5 {[%emt 0:00:09]} 37. Ke2 {[%emt 0:01:38]} Rb1 {[%emt 0:00:16]} 38. b4 {[%emt 0:00:28]} Ra1 {[%emt 0:00:42]} 39. Ke3 {[%emt 0:00:55]} Kg8 {[%emt 0:01:59]} 40. Rf2 {[%emt 0:00:00]} Rxa3+ {[%emt 0:00:00]} 41. Kd4 {[%emt 0:01:00]} Kf7 {[%emt 0:01:06]} 42. Nc5 {[%emt 0:02:06]} Ra1 {[%emt 0:03:09]} 43. Kd5 {[%emt 0:03:56]} a5 {[%emt 0:09:51]} 44. Kc6 {[%emt 0:10:27]} axb4 {[%emt 0:02:57]} 45. Kxb5 {[%emt 0:00:07]} Rb1 {[%emt 0:00:07]} 46. Nb3 {[%emt 0:03:17]} Re1 {[%emt 0:00:05]} 47. Nc5 {[%emt 0:01:21]} Rb1 {[%emt 0:02:40]} 48. Nb3 {[%emt 0:00:05]} Re1 {[%emt 0:01:35]} 49. Nc5 {[%emt 0:01:01]} Rb1 {[%emt 0:02:03]} 1/2-1/2